Cogmind - Beta 17.1 @@@ ROGUE MODE // 2026.09.09 @ 08:43:46 Player: kiul Result: Self-destructed Performance ------------- Evolutions (2) 1000 Regions Visited (5) 1000 Robots Destroyed (34) 170 Value Destroyed (818) 818 Prototype IDs (0) 0 Alien Tech Used (0) 0 Bonus (264) 264 TOTAL SCORE: 3252 Bonus ------- Follower Combat Kills 64 Entered Garrisons 200 Cogmind --------- Core Integrity 211/550 Matter 216/300 Energy 65/100 System Corruption 0% Temperature Cool (24) Movement Core (50) Location -8/Garrison Parts ------- > --- POWER (1) -------- (None) > --- PROPULSION (3) --- (None) > --- UTILITY (4) ------ (None) > --- WEAPON (3) ------- (None) > --- INVENTORY (5) ---- Ion Engine Medium Matter Pod (92) System Shield Peak State ------------ > --- POWER ------------ Light Nuclear Core > --- PROPULSION ------- Light Treads Light Treads Armored Treads > --- UTILITY ---------- Improved Heat Sink Small Storage Unit Tractor Beam > --- WEAPON ----------- Beamcaster Particle Cannon Light Assault Rifle > --- INVENTORY -------- Ion Engine Light Treads Medium Matter Pod Light Armor Plating System Shield Heavy Assault Rifle Improved Light Cannon [Rating: 22] Favorites ----------- Power Light Nuclear Core Engine Ion Engine Power Core Light Nuclear Core Propulsion Light Treads Treads Light Treads Wheel Wheel Utility Small Storage Unit Device Heat Sink Storage Small Storage Unit Protection Light Armor Plating Weapon Light Assault Rifle Energy Gun Beamcaster Energy Cannon Particle Cannon Ballistic Gun Light Assault Rifle Ballistic Cannon Improved Light Cannon Build | -11 -10 -9 -9 -8 -8 ------- Run | Yrd Mat Mat Min Mat Gar Slots Evolved 4 | . . 2 . 2 . Power . | . . . . . . Propulsion 1 | . . . . 1 . Utility 2 | . . 1 . 1 . Weapon 1 | . . 1 . . . Parts Attached 23 | 6 . 2 5 5 5 Power 2 | 1 . . 1 . . Engine 1 | 1 . . . . . Core 1 | . . . 1 . . Reactor . | . . . . . . Propulsion 7 | 2 . . 2 1 2 Treads 5 | . . . 2 1 2 Leg . | . . . . . . Wheel 2 | 2 . . . . . Hover . | . . . . . . Flight . | . . . . . . Utility 7 | 1 . 1 1 3 1 Device 4 | . . 1 1 2 . Storage 1 | 1 . . . . . Processor . | . . . . . . Hackware . | . . . . . . Protection 2 | . . . . 1 1 Artifact . | . . . . . . Weapon 7 | 2 . 1 1 1 2 Energy Gun 1 | . . . 1 . . Energy Cannon 1 | . . 1 . . . Ballistic Gun 4 | 2 . . . 1 1 Ballistic Cannon 1 | . . . . . 1 Launcher . | . . . . . . Special Weapon . | . . . . . . Impact Weapon . | . . . . . . Slashing Weapon . | . . . . . . Piercing Weapon . | . . . . . . Special Melee Weapon . | . . . . . . Unidentified Prototypes . | . . . . . . Parts Lost 21 | . . . 5 . 16 Power 2 | . . . 1 . 1 Propulsion 7 | . . . 2 . 5 Utility 5 | . . . . . 5 Weapon 7 | . . . 2 . 5 Highest Loss Streak 16 | . . . 2 . 16 To Critical Strikes . | . . . . . . Average Backups 5 | 1 4 5 4 6 7 Power . | . 1 1 1 1 1 Propulsion 1 | 1 2 3 1 1 1 Utility 1 | . . 1 1 2 2 Weapon 1 | . . . 1 1 1 Tool/Special . | . . . . . . Unused Backups 3 | . . . . . 3 Power 1 | . . . . . 1 Propulsion . | . . . . . . Utility 2 | . . . . . 2 Weapon . | . . . . . . Tool/Special . | . . . . . . Average Slot Usage (%) 87 | . 85 69 88 88 87 Engine 5 | . 14 11 5 . . Core 4 | . . . 4 9 7 Treads 14 | . . . 15 21 23 Wheel 8 | . 28 22 6 . . Device 12 | . . . 15 18 16 Storage 10 | . 14 11 11 9 9 Protection 1 | . . . . 3 7 Energy Gun 4 | . . . 3 9 7 Energy Cannon 7 | . . 3 11 9 7 Ballistic Gun 15 | . 28 22 16 9 8 Peak Build Rating 22 | 6 6 9 18 21 22 Average Rating 12 | 3 6 7 12 19 18 On Entrance 9 | . 6 6 9 17 21 Avg Prop Armor Cover (%) . | . . . . . . Naked Turns 1 | . . . . . 1 Heaviest Build 25 | 13 13 18 22 25 25 Greatest Support 60 | 20 20 20 40 60 60 Greatest Overweight (x) . | . . . . . . Average Overweight (x) . | . . . . . . Largest Inventory Capacity 8 | 8 8 8 8 8 8 Average Capacity 7 | 6 8 8 8 8 7 Most Carried 8 | 3 5 6 6 8 8 Average Carried 5 | 1 4 5 4 6 7 Final Capacity 8 | 8 8 8 8 8 5 Final Carried 8 | 3 5 6 5 8 3 Class Distribution -------------------- 24% | Mutant 19% | Scavenger-Tank 17% | Scientist-Gunner 15% | Gunner 14% | Scavenger-Gunner 7% | Scavenger-Mutant Dominant Class ---------------- Mutant | -10/Materials Mutant | -9/Materials Scientist-Gunner | -9/Mines Scavenger-Gunner | -8/Materials Scavenger-Tank | -8/Garrison Resources | -11 -10 -9 -9 -8 -8 ----------- Run | Yrd Mat Mat Min Mat Gar Matter Collected 745 | 237 131 32 148 106 91 Remotely 91 | . . . . . 91 Salvage Created 1118 | . 372 53 369 106 218 Parts 68 | . 23 2 29 7 7 Haulers Intercepted 1 | . 1 . . . . Recyclers Shooed 3 | . 3 . . . . Parts Field Recycled . | . . . . . . Retrieved Matter . | . . . . . . Parts Self-Destructed . | . . . . . . Prevented . | . . . . . . Parts Restored . | . . . . . . Kills | -11 -10 -9 -9 -8 -8 ------- Run | Yrd Mat Mat Min Mat Gar Combat Hostiles Destroyed 34 | . 6 1 19 2 6 Guns 17 | . 6 . 6 1 4 Cannons 17 | . . 1 13 1 2 Classes Destroyed 6 | . 4 1 1 . . Hauler 1 | . 1 . . . . Recycler 2 | . 2 . . . . Swarmer 16 | . 3 . 12 . 1 Grunt 12 | . 3 . 4 . 5 Sentry 3 | . . 1 . 2 . Assembled 3 | . . . 3 . . Best Kill Streak 6 | . 6 1 6 1 2 Combat Bots Only 6 | . 6 1 6 1 2 Max Kills in Single Turn 1 | . 1 1 1 1 1 Gunslinging . | . . . . . . Exploded . | . . . . . . Melee . | . . . . . . Uniques/NPCs Destroyed . | . . . . . . Combat | -11 -10 -9 -9 -8 -8 -------- Run | Yrd Mat Mat Min Mat Gar Hostile Shots Fired 323 | . 28 4 69 12 210 Missed 88 | . 12 3 18 4 51 Hits 235 | . 16 1 51 8 159 Projectile 235 | . 16 1 51 8 159 Critical Strikes 9 | . . . 1 1 7 Damage Taken 2591 | . 140 14 548 121 1768 Core 416 | . 7 . 70 . 339 Absorbed by Shields . | . . . . . . Core Remaining (%) 93 | 100 97 . 82 . . Volleys Fired 103 | . 27 3 35 5 33 Largest 3 | . 2 3 3 3 3 Hottest 163 | . 40 108 163 163 163 Shots Fired 244 | . 54 9 102 15 64 Gun 176 | . 54 6 67 10 39 Cannon 68 | . . 3 35 5 25 Launcher . | . . . . . . Special . | . . . . . . Kinetic 167 | . 54 6 61 5 41 Thermal 77 | . . 3 41 10 23 Explosive . | . . . . . . Electromagnetic . | . . . . . . Robot Hit Streak 12 | . 7 3 8 8 12 Robot Miss Streak 5 | . 4 2 5 1 2 Penetration Max . | . . . . . . Secondary Targets . | . . . . . . Shots Hit Robots 135 | . 29 6 50 10 40 Core Hits 58 | . 15 3 24 2 14 Critical Kills 1 | . 1 . . . . Critical Parts Destroyed 2 | . 1 . 1 . . Critical Strikes 6 | . 2 . 2 1 1 Burn 2 | . . . 1 1 . Destroy 3 | . 2 . 1 . . Blast 1 | . . . . . 1 Melee Attacks . | . . . . . . Impact . | . . . . . . Slashing . | . . . . . . Piercing . | . . . . . . Sneak Attacks . | . . . . . . Combat Hostiles . | . . . . . . Follow-up Attacks . | . . . . . . Damage Inflicted 2127 | . 331 80 859 183 674 Guns 1157 | . 331 39 366 102 319 Cannons 969 | . . 41 493 81 354 Explosions . | . . . . . . Melee . | . . . . . . Ramming 1 | . . . . . 1 Kinetic 1095 | . 331 39 302 18 405 Thermal 1031 | . . 41 557 165 268 Explosive . | . . . . . . Electromagnetic . | . . . . . . Impact . | . . . . . . Slashing . | . . . . . . Piercing . | . . . . . . Highest Corruption . | . . . . . . Average Corruption . | . . . . . . Corruption Purged . | . . . . . . Corruption Blocked . | . . . . . . Overload Shots . | . . . . . . Overflow Damage 12 | . . . 12 . . Projectiles 12 | . . . 12 . . Explosions . | . . . . . . Melee . | . . . . . . Knockbacks 3 | . . . . . 3 Impact . | . . . . . . Kinetic 3 | . . . . . 3 Secondary . | . . . . . . Self-Inflicted Damage . | . . . . . . Shots . | . . . . . . Rammed 1 | . . . . . 1 Targets Rammed 1 | . . . . . 1 Kicked . | . . . . . . Crushed . | . . . . . . Highest Temperature 458 | . 6 126 99 126 458 Average Temperature 126 | . 6 67 36 48 280 Received Heat Transfer 924 | . 30 9 120 54 711 Effects 5 | . . . . . 5 Shutdowns 3 | . . . . . 3 Energy Bleed 1 | . . . . . 1 Matter Decay 1 | . . . . . 1 Siege Activations . | . . . . . . Martial Activations . | . . . . . . Shielding Activations . | . . . . . . Robots Disrupted . | . . . . . . Combat Hostiles . | . . . . . . Robots Corrupted . | . . . . . . Combat Hostiles . | . . . . . . Parts Fried . | . . . . . . Impact Corruptions . | . . . . . . Robots Melted . | . . . . . . Combat Hostiles . | . . . . . . Parts Melted 3 | . . . . 2 1 Heat Transferred 1998 | . . 74 1073 370 481 Parts Sabotaged . | . . . . . . Parts Stolen . | . . . . . . Parts Stripped . | . . . . . . Power Chain Reactions . | . . . . . . Alert | -11 -10 -9 -9 -8 -8 ------- Run | Yrd Mat Mat Min Mat Gar Maximum Alert Level 1 | . . . 1 . . Low Security (%) 74 | 100 100 100 47 100 100 Level 1 25 | . . . 52 . . Level 2 . | . . . . . . Level 3 . | . . . . . . Level 4 . | . . . . . . Level 5 . | . . . . . . High Security . | . . . . . . Max Security . | . . . . . . Peak Influence 308 | . 110 68 308 101 108 Initial 81 | . . 46 22 81 59 Average 110 | . 21 50 166 79 82 Influence Increases 936 | . 157 32 498 60 189 Destroy 0b10 Robot/C 700 | . 120 20 400 40 120 Destroy 0b10 Robot/NC 20 | . 15 . 5 . . Destroy Leader 122 | . 22 10 60 20 10 Allied During Kill 18 | . . . 18 . . Successful Hack 16 | . . 2 . . 14 Disable Machine 15 | . . . 15 . . Destroy Structure 15 | . . . . . 15 Lose Combat Pursuer 30 | . . . . . 30 Influence Decreases 848 | . 47 84 346 179 192 Entered New Map 261 | . . 64 36 129 32 Time Decay 357 | . 47 20 240 50 . Lost Part 210 | . . . 50 . 160 Lost Ally 20 | . . . 20 . . Squads Dispatched 2 | . 2 . . . . Investigation 1 | . 1 . . . . Extermination . | . . . . . . Reinforcement 1 | . 1 . . . . Assault . | . . . . . . Garrison . | . . . . . . Intercept . | . . . . . . Searches Triggered . | . . . . . . Construction Impeded . | . . . . . . Haulers Reinforced . | . . . . . . Active Scanning Responses . | . . . . . . Cargo Convoy Interrupts . | . . . . . . Stealth | -11 -10 -9 -9 -8 -8 --------- Run | Yrd Mat Mat Min Mat Gar Distress Signals . | . . . . . . Communications Jammed . | . . . . . . Distress Signals . | . . . . . . Times Spotted 53 | . 11 1 24 4 13 Peak Tracking Total 9 | . 4 1 6 2 9 Tactical Retreats 2 | . . . 1 . 1 Traps | -11 -10 -9 -9 -8 -8 ------- Run | Yrd Mat Mat Min Mat Gar Traps Triggered 1 | . 1 . . . . Indirectly . | . . . . . . Trap Hack Attempts . | . . . . . . Triggered . | . . . . . . Disarmed . | . . . . . . Reprogrammed . | . . . . . . Reused . | . . . . . . Traps Extracted . | . . . . . . Installed . | . . . . . . Triggered . | . . . . . . Machines | -11 -10 -9 -9 -8 -8 ---------- Run | Yrd Mat Mat Min Mat Gar Machines Disabled 1 | . . . 1 . . Max in Single Turn 1 | . . . 1 . . Machines Repaired . | . . . . . . Machines Dismantled . | . . . . . . Machines Sabotaged . | . . . . . . Overloaded Fab Kills . | . . . . . . Hacking | -11 -10 -9 -9 -8 -8 --------- Run | Yrd Mat Mat Min Mat Gar Machines Accessed 3 | . . 1 . 1 1 Terminals 1 | . . . . . 1 Fabricators . | . . . . . . Repair Stations . | . . . . . . Recycling Units . | . . . . . . Scanalyzers 1 | . . 1 . . . Garrison Access 1 | . . . . 1 . Total Hacks 9 | . . 6 . 1 2 Successful 6 | . . 4 . 1 1 Failed 2 | . . 1 . . 1 Catastrophic . | . . . . . . Database Lockouts 1 | . . 1 . . . Manual . | . . . . . . Terminals 2 | . . . . . 2 Fabricators . | . . . . . . Repair Stations . | . . . . . . Recycling Units . | . . . . . . Scanalyzers 6 | . . 6 . . . Garrison Access 1 | . . . . 1 . Terminal Hacks 1 | . . . . . 1 Emergency Access Points 1 | . . . . . 1 Fabricator Hacks . | . . . . . . Repair Station Hacks . | . . . . . . Recycling Unit Hacks . | . . . . . . Scanalyzer 4 | . . 4 . . . Retrieve Study 4 | . . 4 . . . Garrison Access Hacks 1 | . . . . 1 . Unlock Access 1 | . . . . 1 . Unauthorized Hacks . | . . . . . . Terminals . | . . . . . . Fabricators . | . . . . . . Repair Stations . | . . . . . . Recycling Units . | . . . . . . Scanalyzers . | . . . . . . Garrison Access . | . . . . . . Data Cores Recovered . | . . . . . . Used . | . . . . . . Hacking Detections 2 | . . . . 1 1 Full Trace Events . | . . . . . . Feedback Events . | . . . . . . Feedback Blocked . | . . . . . . Robot Schematics Acquired . | . . . . . . Robots Built . | . . . . . . Authchips . | . . . . . . Time . | . . . . . . Total Robot Build Rating . | . . . . . . Part Schematics Acquired . | . . . . . . Parts Built . | . . . . . . Authchips . | . . . . . . Time . | . . . . . . Total Part Build Rating . | . . . . . . Part Studies Acquired 4 | . . 4 . . . Parts Repaired . | . . . . . . Time . | . . . . . . Parts Recycled . | . . . . . . Recycled Matter . | . . . . . . Retrieved Matter . | . . . . . . Retrieved Components . | . . . . . . Parts Scanalyzed . | . . . . . . Part Schematics Acquired . | . . . . . . Parts Damaged . | . . . . . . Bothacking | -11 -10 -9 -9 -8 -8 ------------ Run | Yrd Mat Mat Min Mat Gar Used RIF Installer . | . . . . . . Robots Hacked . | . . . . . . Non-combat . | . . . . . . Combat . | . . . . . . Robot Hacks Applied . | . . . . . . Relay Couplers Released . | . . . . . . Fabnet Peak Effective % . | . . . . . . Robots Rewired . | . . . . . . Allies Hacked . | . . . . . . Hacks Repelled . | . . . . . . Allies | -11 -10 -9 -9 -8 -8 -------- Run | Yrd Mat Mat Min Mat Gar Total Allies 1 | . . . 1 . . Largest Group 1 | . . . 1 . . Highest-Rated Group 31 | . . . 31 . . Highest-Rated Ally 31 | . . . 31 . . Total Orders . | . . . . . . Ally Attacks 20 | . . . 20 . . Total Damage 271 | . . . 271 . . Kills 5 | . . . 5 . . Allies Corrupted . | . . . . . . Allies Melted . | . . . . . . Intel | -11 -10 -9 -9 -8 -8 ------- Run | Yrd Mat Mat Min Mat Gar Active Infowar (turns) . | . . . . . . Robot Analysis Total . | . . . . . . Derelict Logs Recovered 1 | . . . 1 . . Drone Launches . | . . . . . . Drone Recoveries . | . . . . . . Exploration | -11 -10 -9 -9 -8 -8 ------------- Run | Yrd Mat Mat Min Mat Gar Turns Passed 1247 | 46 170 51 601 118 261 Spaces Moved 759 | 45 116 47 392 57 102 Core 5 | 5 . . . . . Treads 362 | . . . 203 57 102 Legs . | . . . . . . Wheels 392 | 40 116 47 189 . . Hover . | . . . . . . Flight . | . . . . . . Fastest Speed 50 | 50 80 80 80 160 160 Average Speed 118 | 76 80 80 121 160 160 Slowest Speed 170 | 80 80 80 160 160 170 Overloaded Moves . | . . . . . . Propulsion Burnouts . | . . . . . . Robots Hopped . | . . . . . . Potential Cave-ins . | . . . . . . Cave-ins Triggered . | . . . . . . Exploration Rate (%) 28 | 3 42 5 86 8 26 Regions Visited 5 Branch Regions 1 Pre-discovered Areas 2 | . . . 2 . . Known Exits Taken 1 | . . . . 1 . Unknown Exits Taken 4 | 1 1 1 1 . . Scrap Searched . | . . . . . . Spaces Dug . | . . . . . . Terrain Destroyed . | . . . . . . Melee . | . . . . . . Projectile . | . . . . . . AOE . | . . . . . . Terrain Rammed . | . . . . . . Walls Destroyed . | . . . . . . Machines Disabled . | . . . . . . Actions | -11 -10 -9 -9 -8 -8 --------- Run | Yrd Mat Mat Min Mat Gar Total 912 | 53 144 53 444 73 145 Wait 15 | . . . 12 . 3 Move 754 | 44 115 46 391 56 102 Hop . | . . . . . . Pick Up 13 | 3 2 2 1 5 . Fast Attach 12 | 6 . 1 3 2 . Attach 9 | . . 1 2 1 5 Detach . | . . . . . . Swap 3 | . . . . 2 1 Drop 2 | . . . . 2 . Fire 103 | . 27 3 35 5 33 Melee . | . . . . . . Ram . | . . . . . . Kick . | . . . . . . Crush 1 | . . . . . 1 Escape Stasis . | . . . . . . Rewire . | . . . . . . Trap . | . . . . . . Miscellaneous . | . . . . . . Route ------- -11/Scrapyard -10/Materials (discovered 2 exits: *Mat / [*Min]) -9/Materials -9/Mines (discovered 2 exits: *Mat / [*Zio]) -8/Materials -8/Garrison History --------- Turn | Location | Event 3 | -11/Scrapyard | Discovered new exit (range 15) 47 | -11/Scrapyard | Entered Materials 68 | -10/Materials | Discovered new exit (range 6) 212 | -10/Materials | Discovered new exit (range 6) 217 | -10/Materials | Entered another Materials area 217 | -9/Materials | Evolved 2 slots: Utility x1, Weapon x1 227 | -9/Materials | Central database locked down 237 | -9/Materials | Discovered new exit (range 16) 268 | -9/Materials | Entered Mines 396 | -9/Mines | Escorted by a lone wolf Derelict 414 | -9/Mines | A Derelict revealed a hidden shortcut to a safe place 416 | -9/Mines | Learned location of Storage (-9) 598 | -9/Mines | Assembled infested the area 819 | -9/Mines | Discovered new exit (range 7) 869 | -9/Mines | Entered Materials 869 | -8/Materials | Evolved 2 slots: Propulsion x1, Utility x1 985 | -8/Materials | Identified exit to Garrison 987 | -8/Materials | Entered Garrison 1023 | -8/Garrison | Triggered checkpoint 1149 | -8/Garrison | Triggered checkpoint 1165 | -8/Garrison | Triggered checkpoint 1226 | -8/Garrison | Triggered checkpoint 1234 | -8/Garrison | Core integrity fell below 50% 1248 | -8/Garrison | Self-destructed Last Messages --------------- 01187_ Power failure, Lgt. Nuclear Core shutdown. 01187_ Lgt. Nuclear Core destroyed. 01187_ Critical hit (Burn: +37). 01193_ Lgt. Armor Plating destroyed. 01193_ Critical hit (Burn: +37). 01198_ G-47 Trooper knocked back. 01203_ Critical hit (Burn: +37). 01208_ G-47 Trooper destroyed. 01209_ Lgt. Assault Rifle+ destroyed. 01219_ Imp. Light Cannon destroyed. 01226_ Beams of light sweep through the air. An alarm sounds. 01227_ Lgt. Treads+ destroyed. 01232_ G-47 Trooper destroyed. 01236_ Hvy. Assault Rifle destroyed. 01239_ Slammed into S-10 Pest. 01243_ Arm. Treads destroyed. 01243_ Imp. Heat Sink destroyed. 01244_ S-10 Pest destroyed. 01247_ Beamcaster destroyed. 01247_ Sml. Storage Unit destroyed. Map ----- +----------------------------------------------------+ | ?????????????????????????????????????????????????? | | ?????????????????????????????????????????????????? | | ??????????????????????????++??????????????+??????? | | ???????????+?????????????????????????????????????? | | ?????????????????????????????????????????????????? | | ?????????????????????????????????????????????????? | | ?????????????????????????????????????????????????? | | ?????????????????????????????????????????????????? | | ????+??+?????????????????????????????????????????? | | ????????????????????????????#????????????????????? | | ???????????????????######?? #????????????????????? | | ????+??????????????# #? #????????????????????? | | ??????????????##+### ## ##???????????????????? | | ???????????+### #???????????????????? | | ???????????? #???????????????????? | | ????????????? ? #???????????????????? | | ??????????????# ## #? #???????????????????? | | ????????????### ## ## #???????????????????? | | ????????????# "???????????????????? | | ????????????# "???????????????????? | | ????????????# "???????????????????? | | ????????????# ! =%! "???????????????????? | | ????????????### ## = ## #???????????????????? | | ????########### ## ss## #########???????????? | | ###?# ^ sss #?????????? | | ""#?# ^ %s @ #?????????? | | !"#?# ######## ^ *%s ###+###?????????????? | | #?# #??????##;### % %##+###???????????????????? | | ### #???????# #?# =% #????????????????????????? | | #???????# #?######????????????????????????? | | ######### #???????????????????????????????? | | ### " #??????????????????+??+?????????? | | #?# ###########???????????????????????????????? | | !"#?# T#????????????????????????????????????????? | | ""#?# ##????????????????????????????????????????? | | ###?# #?????????????????????????????????????????? | | ##### #????????????????????????+????????????????? | | ####??????????????????????????????????????? | | + #?????????????????????????????????+????? | | #### #### #??????????????????????????????????????? | | ???# #??# #??????????????????????????????????????? | | ???# #??# #???#######????????????????+???????????? | | ???# #??# #???#"""""#???????+???+????????????????? | | ???# ####"###### ##?????+??????????????????????? | | ???# #????????????????????????????? | | ???####### ########????????????????????????????? | | ?????????# #???????????????????????????????????? | | ?????????#####?????????????????????+?????????????? | | ?????????????????????????????????????????????????? | | ?????????????????????????????????????????????????? | +----------------------------------------------------+ Best States ------------- Heat Dissipation 55 Energy Generation 14 Energy Capacity 250 Matter Stores 300 Matter Capacity 300 Sight Range 16 Terrain Scan Density 10 Armor Coverage 150 Evasion (%) 44 Recoil Reduction 3 Item Schematics ----------------- None Robot Schematics ------------------ None Fabricated ------------ Nothing Repaired ---------- Nothing Studied --------- Assault Rifle | -9/Materials | Hacked Particle Cannon | -9/Materials | Hacked Lgt. Assault Rifle | -9/Materials | Hacked Lgt. Treads | -9/Materials | Hacked Alien Tech Used ----------------- None Achievements -------------- None Challenges ------------ None Game ------ Seed MachinePlexusDrillbomb Manual? 0 Play Time 00:13:15 Cumulative 67.8 hours Start 2026.09.07 @ 20:31:58 End 2026.09.09 @ 08:43:46 Sessions 5 Manual Loads 0 Difficulty Rogue Special Mode None Game No. 88 Rogue 88 Adventurer 0 Explorer 0 Win Type - Total 0 Types 0/0/0/0/0/0/0/0/0/0 Lore% 13 Gallery% 37 Achievement% 25 Wizard Run 0 Options --------- Layout 0 ASCII 0 Keyboard 1 Movement Arrows Keybinds 0 Fullscreen 1 Font 24/Smallcaps Map View 76x50 Zoom Use 0% Tactical HUD 1 Map Filters NONE Filters NONE Steam 1 RUN: ab9a69bb-caa3-48d6-abe4-fee59f371bc3